fUSD/lending_fUSD_20260401
["ID","MTS","AMOUNT","RATE_DAILY","PERIOD"]
[419203312,1775017887289,-795.07293,0.00032999,7]
[419203313,1775017887300,-151.0,0.00032999,7]
[419203314,1775017887310,-795.07292,0.00032999,7]
[419203315,1775017887320,-289.862396,0.00032999,7]
[419203316,1775017887329,-2425.250215,0.00032999,7]
[419203317,1775017887339,-151.0,0.00032999,7]
[419203318,1775017887348,-511.966398,0.00032999,7]
[419203319,1775017887358,-151.0,0.00032999,7]
[419203320,1775017887367,-151.0,0.00032999,7]
[419203321,1775017887376,-511.966398,0.00032999,7]
[419203322,1775017887386,-151.0,0.00032999,7]
[419203323,1775017887395,-511.966398,0.00032999,7]
[419203324,1775017887405,-511.966388,0.00032999,7]
[419203325,1775017887414,-593.888307,0.00032999,7]
[419203326,1775017887424,-170.656032,0.00032999,7]
[419203327,1775017887434,-160.106788,0.00032999,7]
[419203328,1775017887443,-593.888307,0.00032999,7]
[419203329,1775017887453,-170.656032,0.00032999,7]
[419203330,1775017887462,-160.106788,0.00032999,7]
[419203331,1775017887471,-593.888307,0.00032999,7]
[419203332,1775017887481,-170.656032,0.00032999,7]
[419203333,1775017887491,-160.106788,0.00032999,7]
[419203334,1775017887503,-593.888307,0.00032999,7]
[419203335,1775017887515,-470.643226,0.00032999,7]
[419203336,1775017887526,-170.656034,0.00032999,7]
[419203337,1775017887536,-151.0,0.00032999,2]
[419203338,1775017887548,-160.10679,0.00032999,7]
[419203339,1775017887559,-387.268935,0.00032999,7]
[419203340,1775017887569,-470.643226,0.00032999,7]
[419203341,1775017887580,-151.0,0.00032999,7]
[419203342,1775017887590,-151.0,0.00032999,7]
[419203343,1775017887601,-253.217047,0.00032999,7]
[419203344,1775017887612,-387.268935,0.00032999,7]
[419203345,1775017887624,-470.643226,0.00032999,7]
[419203346,1775017887634,-151.0,0.00032999,7]
[419203347,1775017887644,-151.0,0.00032999,7]
[419203348,1775017887655,-387.268935,0.00032999,7]
[419203349,1775017887665,-470.643219,0.00032999,7]
[419203350,1775017887675,-253.217047,0.00032999,7]
[419203351,1775017887685,-302.093611,0.00032999,7]
[419203352,1775017887697,-387.268927,0.00032999,7]
[419203353,1775017887708,-151.0,0.00032999,7]
[419203354,1775017887717,-151.0,0.00032999,7]
[419203355,1775017887728,-302.093611,0.00032999,7]
[419203356,1775017887739,-253.217047,0.00032999,7]
[419203357,1775017887750,-2106.955926,0.00032999,7]
[419203358,1775017887759,-151.0,0.00032999,7]
[419203359,1775017887771,-302.093611,0.00032999,7]
[419203360,1775017887781,-253.217056,0.00032999,7]
[419203361,1775017887791,-2106.955926,0.00032999,7]
[419203362,1775017887801,-1313.53875,0.00032999,7]
[419203363,1775017887813,-539.294502,0.00032999,7]
[419203364,1775017887824,-485.224635,0.00032999,7]
[419203365,1775017887834,-151.0,0.00032999,7]
[419203366,1775017887844,-302.093603,0.00032999,7]
[419203367,1775017887855,-2106.955926,0.00032999,7]
[419203368,1775017887867,-151.0,0.00032999,7]
[419203369,1775017887879,-1313.53875,0.00032999,7]
[419203370,1775017887890,-539.294502,0.00032999,7]
[419203371,1775017887902,-485.224635,0.00032999,7]
[419203372,1775017887914,-151.0,0.00032999,7]
[419203373,1775017887924,-1541.735085,0.00032999,7]
[419203374,1775017887934,-2106.955926,0.00032999,7]
[419203375,1775017887945,-167.98282313,0.00033,120]
[419203376,1775017887955,-192.59859554,0.00033,120]
[419203377,1775017887968,-1530.51664845,0.00033,120]
[419203378,1775017887979,-167.63309835,0.00033,120]
[419203379,1775017887990,-199.91744556,0.00033,120]
[419203380,1775017888000,-169.62268548,0.00033,120]
[419203381,1775017888009,-184.63982661,0.00033,120]
[419203382,1775017888019,-200.0,0.00033,10]
[419203383,1775017888030,-150.0,0.00033043,2]
[419203384,1775017888271,-200.0,0.00033066,2]
[419203385,1775017888289,-200.0,0.00033066,2]
[419203386,1775017888300,-184.0,0.00033066,2]
[419203387,1775017888310,-200.0,0.00033078,2]
[419203388,1775017888320,-287.0,0.00033078,2]
[419203389,1775017888331,-27980.39,0.000331,2]
[419203390,1775017888342,-9127.68,0.000331,30]
[419203391,1775017888352,-7730.48,0.000331,30]
[419203392,1775017888362,-7126.81,0.000331,30]
[419203393,1775017888372,-300.0,0.000331,10]
[419203394,1775017888383,-755.641847,0.000331,7]
[419203395,1775017888393,-219.010236,0.000331,7]
[419203396,1775017888404,-755.641847,0.000331,7]
[419203397,1775017888414,-151.0,0.000331,7]
[419203398,1775017888424,-219.010236,0.000331,7]
[419203399,1775017888434,-755.641847,0.000331,7]
[419203400,1775017888444,-479.019337,0.000331,7]
[419203401,1775017888454,-219.010236,0.000331,7]
[419203402,1775017888464,-1253.021683,0.000331,7]
[419203403,1775017888474,-755.641845,0.000331,7]
[419203404,1775017888483,-479.019337,0.000331,7]
[419203405,1775017888493,-1253.021683,0.000331,7]
[419203406,1775017888503,-191.294335,0.000331,7]
[419203407,1775017888513,-219.010243,0.000331,7]
[419203408,1775017888522,-168.463139,0.000331,7]
[419203409,1775017888532,-479.019337,0.000331,7]
[419203410,1775017888541,-151.0,0.000331,7]
[419203411,1775017888551,-1253.021683,0.000331,7]
[419203412,1775017888560,-191.294335,0.000331,7]
[419203413,1775017888570,-151.0,0.000331,7]
[419203414,1775017888580,-168.463139,0.000331,7]
[419203415,1775017888590,-479.019335,0.000331,7]
[419203416,1775017888600,-191.294335,0.000331,7]
[419203417,1775017888610,-1253.021678,0.000331,7]
[419203418,1775017888620,-168.463139,0.000331,7]
[419203419,1775017888630,-151.0,0.000331,7]
[419203420,1775017888640,-151.0,0.000331,7]
[419203421,1775017888650,-191.294335,0.000331,7]
[419203422,1775017888660,-168.463141,0.000331,7]
[419203423,1775017888671,-154.629122,0.000331,7]
[419203424,1775017888681,-905.046665,0.000331,7]
[419203425,1775017888691,-905.046665,0.000331,7]
[419203426,1775017888702,-151.0,0.000331,7]
[419203427,1775017888712,-151.0,0.000331,7]
[419203428,1775017888723,-905.046665,0.000331,7]
[419203429,1775017888733,-189.989707,0.000331,7]
[419203430,1775017888744,-905.046656,0.000331,7]
[419203431,1775017888755,-1549.066871,0.000331,7]
[419203432,1775017888767,-151.0,0.000331,7]
[419203433,1775017888778,-1549.066871,0.000331,7]
[419203434,1775017888788,-151.0,0.000331,7]
[419203435,1775017888800,-1549.066871,0.000331,7]
[419203436,1775017888810,-151.0,0.000331,7]
[419203437,1775017888820,-337.50102,0.000331,7]
[419203438,1775017888830,-1549.066868,0.000331,7]
[419203439,1775017888841,-151.0,0.000331,7]
[419203440,1775017888851,-337.50102,0.000331,7]
[419203441,1775017888861,-337.50102,0.000331,7]
[419203442,1775017888871,-337.501028,0.000331,7]
[419203443,1775017888881,-161.805166,0.000331,7]
[419203444,1775017888891,-161.805166,0.000331,7]
[419203445,1775017888901,-161.805166,0.000331,7]
[419203446,1775017888911,-263.622068,0.000331,7]
[419203447,1775017888923,-161.805163,0.000331,7]
[419203448,1775017888933,-263.622068,0.000331,7]
[419203449,1775017888943,-829.376355,0.000331,7]
[419203450,1775017888953,-829.376355,0.000331,7]
[419203451,1775017888963,-1214.340998,0.000331,7]
[419203452,1775017888973,-829.376355,0.000331,7]
[419203453,1775017888983,-1214.340998,0.000331,7]
[419203454,1775017888993,-829.376359,0.000331,7]
[419203455,1775017889003,-263.622068,0.000331,7]
[419203456,1775017889013,-1214.340998,0.000331,7]
[419203457,1775017889023,-263.622062,0.000331,7]
[419203458,1775017889033,-1214.340995,0.000331,7]
[419203459,1775017889043,-151.0,0.000331,7]
[419203460,1775017889053,-273.873245,0.000331,7]
[419203461,1775017889063,-1002.143556,0.000331,7]
[419203462,1775017889073,-892.253268,0.000331,7]
[419203463,1775017889082,-151.0,0.000331,7]
[419203464,1775017889092,-273.873245,0.000331,7]
[419203465,1775017889101,-839.001389,0.000331,7]
[419203466,1775017889111,-180.40649,0.000331,7]
[419203467,1775017889121,-1002.143556,0.000331,7]
[419203468,1775017889132,-151.0,0.000331,7]
[419203469,1775017889141,-151.0,0.000331,7]
[419203470,1775017889151,-610.708078,0.000331,7]
[419203471,1775017889161,-892.253268,0.000331,7]
[419203472,1775017889171,-151.0,0.000331,7]
[419203473,1775017889180,-839.001389,0.000331,7]
[419203474,1775017889190,-273.873245,0.000331,7]
[419203475,1775017889200,-1002.143556,0.000331,7]
[419203476,1775017889210,-892.253268,0.000331,7]
[419203477,1775017889220,-610.708078,0.000331,7]
[419203478,1775017889230,-839.001389,0.000331,7]
[419203479,1775017889240,-273.873243,0.000331,7]
[419203480,1775017889251,-1002.143562,0.000331,7]
[419203481,1775017889261,-196.147739,0.000331,7]
[419203482,1775017889270,-892.253274,0.000331,7]
[419203483,1775017889280,-610.708078,0.000331,7]
[419203484,1775017889290,-839.001385,0.000331,7]
[419203485,1775017889300,-196.147739,0.000331,7]
[419203486,1775017889310,-4126.945995,0.000331,7]
[419203487,1775017889321,-610.708079,0.000331,7]
[419203488,1775017889330,-196.147739,0.000331,7]
[419203489,1775017889340,-151.0,0.000331,7]
[419203490,1775017889349,-4126.945995,0.000331,7]
[419203491,1775017889359,-4589.596736,0.000331,7]
[419203492,1775017889369,-4126.945995,0.000331,7]
[419203493,1775017889379,-196.147735,0.000331,7]
[419203494,1775017889388,-151.0,0.000331,7]
[419203495,1775017889399,-4589.596736,0.000331,7]
[419203496,1775017889410,-4126.945992,0.000331,7]
[419203497,1775017889420,-4589.596736,0.000331,7]
[419203498,1775017889431,-4589.59674,0.000331,7]
[419203499,1775017889441,-151.0,0.000331,7]
[419203500,1775017889450,-353.860164,0.000331,7]
[419203501,1775017889460,-353.860164,0.000331,7]
[419203502,1775017889471,-151.0,0.000331,7]
[419203503,1775017889481,-353.860164,0.000331,7]
[419203504,1775017889492,-353.860171,0.000331,7]
[419203505,1775017889502,-1014.36,0.00033125,120]
[419203506,1775017889512,-153.94,0.00033158,7]
[419203507,1775017889521,-197.89,0.00033158,7]
[419203508,1775017889531,-151.0,0.00033222,5]
[419203509,1775017889541,-27980.39,0.000333,2]
[419203510,1775017889550,-9127.68,0.000333,30]
[419203511,1775017889560,-7730.48,0.000333,30]
[419203512,1775017889571,-7126.81,0.000333,30]
[419203513,1775017889581,-492.031885,0.000333,7]
[419203514,1775017889592,-492.031885,0.000333,7]
[419203515,1775017889604,-151.0,0.000333,7]
[419203516,1775017889613,-483.27777,0.000333,7]
[419203517,1775017889622,-492.031885,0.000333,7]
[419203518,1775017889633,-483.27777,0.000333,7]
[419203519,1775017889644,-492.031888,0.000333,7]
[419203520,1775017889655,-373.639694,0.000333,7]
[419203521,1775017889665,-483.27777,0.000333,7]
[419203522,1775017889675,-151.0,0.000333,7]
[419203523,1775017889688,-151.0,0.000333,7]
[419203524,1775017889698,-483.277765,0.000333,7]
[419203525,1775017889709,-2968.75711,0.000333,7]
[419203526,1775017889718,-373.639694,0.000333,7]
[419203527,1775017889728,-374.687718,0.000333,7]
[419203528,1775017889737,-151.0,0.000333,7]
[419203529,1775017889747,-151.0,0.000333,7]
[419203530,1775017889757,-373.639694,0.000333,7]
[419203531,1775017889767,-2968.75711,0.000333,7]
[419203532,1775017889776,-374.687718,0.000333,7]
[419203533,1775017889785,-3433.898481,0.000333,7]
[419203534,1775017889796,-373.63968991,0.000333,7]
[419203535,1775017889806,-374.687718,0.000333,7]
[419203536,1775017889816,-3433.898481,0.000333,7]
[419203537,1775017889828,-374.687721,0.000333,7]
[419203538,1775017889838,-3433.898481,0.000333,7]
[419203539,1775017889848,-1777.572748,0.000333,7]
[419203540,1775017889858,-3433.898483,0.000333,7]
[419203541,1775017889868,-1777.572748,0.000333,7]
[419203542,1775017889878,-810.172394,0.000333,7]
[419203543,1775017889887,-151.0,0.000333,7]
[419203544,1775017889897,-180.834424,0.000333,7]
[419203545,1775017889907,-1777.572748,0.000333,7]
[419203546,1775017889917,-810.172394,0.000333,7]
[419203547,1775017889927,-1777.572739,0.000333,7]
[419203548,1775017889937,-151.0,0.000333,7]
[419203549,1775017889947,-810.172394,0.000333,7]
[419203550,1775017889956,-2968.75711,0.000333,7]
[419203551,1775017889966,-151.0,0.000333,7]
[419203552,1775017889977,-151.0,0.000333,7]
[419203553,1775017889988,-810.1724,0.000333,7]
[419203554,1775017889998,-2968.757106,0.000333,7]
[419203555,1775017890008,-151.0,0.000333,7]
[419203556,1775017890018,-404.966357,0.000333,7]
[419203557,1775017890027,-404.966357,0.000333,7]
[419203558,1775017890036,-404.966357,0.000333,7]
[419203559,1775017890046,-404.966353,0.000333,7]
[419203560,1775017890055,-698.819389,0.000333,7]
[419203561,1775017890065,-698.819389,0.000333,7]
[419203562,1775017890074,-151.0,0.000333,7]
[419203563,1775017890084,-698.819389,0.000333,7]
[419203564,1775017890094,-151.0,0.000333,7]
[419203565,1775017890103,-698.819383,0.000333,7]
[419203566,1775017890113,-271.074529,0.000333,7]
[419203567,1775017890122,-649.377886,0.000333,7]
[419203568,1775017890132,-188.8771,0.000333,7]
[419203569,1775017890141,-563.06762,0.000333,7]
[419203570,1775017890150,-188.8771,0.000333,7]
[419203571,1775017890159,-563.06762,0.000333,7]
[419203572,1775017890168,-188.8771,0.000333,7]
[419203573,1775017890178,-563.06762,0.000333,7]
[419203574,1775017890187,-188.877104,0.000333,7]
[419203575,1775017890197,-563.06761,0.000333,7]
[419203576,1775017890206,-649.377886,0.000333,7]
[419203577,1775017890215,-649.377886,0.000333,7]
[419203578,1775017890224,-649.377887,0.000333,7]
[419203579,1775017890234,-196.226046,0.000333,7]
[419203580,1775017890246,-196.226046,0.000333,7]
[419203581,1775017890255,-196.226046,0.000333,7]
[419203582,1775017890265,-984.6392,0.000333,7]
[419203583,1775017890274,-196.226045,0.000333,7]
[419203584,1775017890284,-984.6392,0.000333,7]
[419203585,1775017890293,-984.6392,0.000333,7]
[419203586,1775017890302,-1032.993865,0.000333,7]
[419203587,1775017890312,-984.639192,0.000333,7]
[419203588,1775017890321,-1032.993865,0.000333,7]
[419203589,1775017890330,-1032.993865,0.000333,7]
[419203590,1775017890339,-420.0,0.000333,7]
[419203591,1775017890348,-1032.993863,0.000333,7]
[419203592,1775017890358,-420.0,0.000333,7]
[419203593,1775017890367,-151.0,0.000333,7]
[419203594,1775017890376,-420.0,0.000333,7]
[419203595,1775017890385,-420.0,0.000333,7]
[419203596,1775017890395,-266.409787,0.000333,7]
[419203597,1775017890403,-151.0,0.000333,7]
[419203598,1775017890412,-500.0,0.00033327,120]
[419203599,1775017890421,-500.0,0.00033327,120]
[419203600,1775017890431,-1014.36,0.00033438,120]
[419203601,1775017890440,-1180.36391778,0.00033448,5]
[419203602,1775017890449,-27980.39,0.000335,2]
[419203603,1775017890787,-9127.68,0.000335,30]
[419203604,1775017890804,-7730.48,0.000335,30]
[419203605,1775017890814,-7126.81,0.000335,30]
[419203606,1775017890823,-349.539048,0.000335,7]
[419203607,1775017890832,-163.965869,0.000335,7]
[419203608,1775017890842,-349.539048,0.000335,7]
[419203609,1775017890851,-432.594449,0.000335,7]
[419203610,1775017890860,-151.0,0.000335,7]
[419203611,1775017890869,-163.965869,0.000335,7]
[419203612,1775017890879,-349.539048,0.000335,7]
[419203613,1775017890888,-432.594449,0.000335,7]
[419203614,1775017890898,-310.869876,0.000335,7]
[419203615,1775017890907,-151.0,0.000335,7]
[419203616,1775017890916,-163.965869,0.000335,7]
[419203617,1775017890926,-349.539048,0.000335,7]
[419203618,1775017890937,-432.594449,0.000335,7]
[419203619,1775017890947,-310.869876,0.000335,7]
[419203620,1775017890956,-151.0,0.000335,7]
[419203621,1775017890965,-163.965869,0.000335,7]
[419203622,1775017890977,-310.869876,0.000335,7]
[419203623,1775017890987,-432.594449,0.000335,7]
[419203624,1775017890997,-173.356592,0.000335,7]
[419203625,1775017891007,-173.235551,0.000335,7]
[419203626,1775017891017,-310.869876,0.000335,7]
[419203627,1775017891026,-173.235551,0.000335,7]
[419203628,1775017891035,-151.0,0.000335,7]
[419203629,1775017891045,-173.356592,0.000335,7]
[419203630,1775017891056,-173.235551,0.000335,7]
[419203631,1775017891065,-151.0,0.000335,7]
[419203632,1775017891075,-157.060162,0.000335,7]
[419203633,1775017891086,-173.235551,0.000335,7]
[419203634,1775017891097,-173.356592,0.000335,7]
[419203635,1775017891107,-173.356592,0.000335,7]
[419203636,1775017891116,-201.137594,0.000335,7]
[419203637,1775017891125,-201.137594,0.000335,7]
[419203638,1775017891135,-201.137594,0.000335,7]
[419203639,1775017891144,-3276.685982,0.000335,7]
[419203640,1775017891154,-201.137594,0.000335,7]
[419203641,1775017891163,-3276.685982,0.000335,7]
[419203642,1775017891172,-3276.685982,0.000335,7]
[419203643,1775017891181,-3276.685982,0.000335,7]
[419203644,1775017891191,-500.0,0.00033599,30]
[419203645,1775017891199,-319.999827,0.00033637,7]
[419203646,1775017891208,-319.999827,0.00033637,7]
[419203647,1775017891217,-319.999827,0.00033637,7]
[419203648,1775017891227,-319.999827,0.00033637,7]
[419203649,1775017891236,-151.0,0.00033637,7]
[419203650,1775017891245,-151.0,0.00033637,7]
[419203651,1775017891254,-151.0,0.00033637,7]
[419203652,1775017891263,-151.0,0.00033637,7]
[419203653,1775017891273,-390.14726,0.00033637,7]
[419203654,1775017891282,-151.0,0.00033637,7]
[419203655,1775017891291,-390.14726,0.00033637,7]
[419203656,1775017891300,-151.0,0.00033637,7]
[419203657,1775017891310,-390.14726,0.00033637,7]
[419203658,1775017891319,-151.0,0.00033637,7]
[419203659,1775017891328,-390.14726,0.00033637,7]
[419203660,1775017891338,-152.754954,0.00033637,7]
[419203661,1775017891348,-151.0,0.00033637,7]
[419203662,1775017891357,-644.599907,0.00033637,7]
[419203663,1775017891367,-151.0,0.00033637,7]
[419203664,1775017891377,-151.0,0.00033637,7]
[419203665,1775017891387,-152.754954,0.00033637,7]
[419203666,1775017891397,-644.599907,0.00033637,7]
[419203667,1775017891408,-151.0,0.00033637,7]
[419203668,1775017891417,-151.0,0.00033637,7]
[419203669,1775017891427,-152.754954,0.00033637,7]
[419203670,1775017891436,-644.599907,0.00033637,7]
[419203671,1775017891447,-151.0,0.00033637,7]
[419203672,1775017891456,-152.754954,0.00033637,7]
[419203673,1775017891467,-644.599907,0.00033637,7]
[419203674,1775017891477,-256.203795,0.00033637,7]
[419203675,1775017891488,-583.094244,0.00033637,7]
[419203676,1775017891499,-252.213811,0.00033637,7]
[419203677,1775017891509,-1888.020243,0.00033637,7]
[419203678,1775017891520,-583.094244,0.00033637,7]
[419203679,1775017891529,-256.203795,0.00033637,7]
[419203680,1775017891539,-252.213811,0.00033637,7]
[419203681,1775017891548,-1888.020243,0.00033637,7]
[419203682,1775017891557,-583.094244,0.00033637,7]
[419203683,1775017891567,-252.213811,0.00033637,7]
[419203684,1775017891576,-256.203795,0.00033637,7]
[419203685,1775017891586,-1888.020243,0.00033637,7]
[419203686,1775017891596,-583.094244,0.00033637,7]
[419203687,1775017891605,-1214.826728,0.00033637,7]
[419203688,1775017891615,-252.213811,0.00033637,7]
[419203689,1775017891625,-256.203795,0.00033637,7]
[419203690,1775017891635,-1888.020243,0.00033637,7]
[419203691,1775017891644,-1214.826728,0.00033637,7]
[419203692,1775017891654,-151.0,0.00033637,7]
[419203693,1775017891663,-1214.826728,0.00033637,7]
[419203694,1775017891673,-1214.826728,0.00033637,7]
[419203695,1775017891683,-151.0,0.00033637,7]
[419203696,1775017891695,-151.0,0.00033637,7]
[419203697,1775017891704,-266.850709,0.00033637,7]
[419203698,1775017891713,-609.890694,0.00033637,7]
[419203699,1775017891723,-266.850709,0.00033637,7]
[419203700,1775017891733,-609.890694,0.00033637,7]
[419203701,1775017891743,-266.850709,0.00033637,7]
[419203702,1775017891753,-609.890694,0.00033637,7]
[419203703,1775017891762,-266.850709,0.00033637,7]
[419203704,1775017891773,-609.890694,0.00033637,7]
[419203705,1775017891783,-269.689,0.00033637,7]
[419203706,1775017891793,-269.689,0.00033637,7]
[419203707,1775017891803,-269.689,0.00033637,7]
[419203708,1775017891813,-151.0,0.00033637,7]
[419203709,1775017891824,-269.689,0.00033637,7]
[419203710,1775017891835,-1263.0,0.00033637,2]
[419203711,1775017891845,-150.0,0.00033637,2]
[419203712,1775017891854,-925.0,0.00033637,2]
[419203713,1775017891864,-1216.0,0.00033637,2]
[419203714,1775017891875,-10771.5124,0.000337,87]
[419203715,1775017891886,-27980.39,0.000337,2]
[419203716,1775017891895,-9127.68,0.000337,30]
[419203717,1775017891905,-7730.48,0.000337,30]
[419203718,1775017891915,-174.731159,0.000337,7]
[419203719,1775017891926,-151.0,0.000337,7]
[419203720,1775017891935,-151.0,0.000337,7]
[419203721,1775017891946,-253.666059,0.000337,7]
[419203722,1775017891956,-151.0,0.000337,7]
[419203723,1775017891966,-253.666059,0.000337,7]
[419203724,1775017891975,-151.0,0.000337,7]
[419203725,1775017891986,-253.666059,0.000337,7]
[419203726,1775017891996,-151.0,0.000337,7]
[419203727,1775017892006,-253.666055,0.000337,7]
[419203728,1775017892017,-583.935786,0.000337,7]
[419203729,1775017892027,-151.0,0.000337,7]
[419203730,1775017892037,-1057.162612,0.000337,7]
[419203731,1775017892047,-583.935786,0.000337,7]
[419203732,1775017892056,-1057.162612,0.000337,7]
[419203733,1775017892066,-151.0,0.000337,7]
[419203734,1775017892076,-204.743484,0.000337,7]
[419203735,1775017892085,-1481.011134,0.000337,7]
[419203736,1775017892096,-583.935786,0.000337,7]
[419203737,1775017892105,-1445.817213,0.000337,7]
[419203738,1775017892115,-1057.162612,0.000337,7]
[419203739,1775017892125,-204.743484,0.000337,7]
[419203740,1775017892135,-151.0,0.000337,7]
[419203741,1775017892144,-381.584379,0.000337,7]
[419203742,1775017892153,-151.0,0.000337,7]
[419203743,1775017892163,-1481.011134,0.000337,7]
[419203744,1775017892172,-1445.817213,0.000337,7]
[419203745,1775017892182,-741.356026,0.000337,7]
[419203746,1775017892192,-204.743484,0.000337,7]
[419203747,1775017892202,-583.935796,0.000337,7]
[419203748,1775017892211,-1057.16262,0.000337,7]
[419203749,1775017892221,-381.584379,0.000337,7]
[419203750,1775017892230,-1481.011134,0.000337,7]
[419203751,1775017892240,-292.439697,0.000337,7]
[419203752,1775017892250,-1445.817213,0.000337,7]
[419203753,1775017892260,-741.356026,0.000337,7]
[419203754,1775017892269,-204.743484,0.000337,7]
[419203755,1775017892279,-381.584379,0.000337,7]
[419203756,1775017892290,-1481.011124,0.000337,7]
[419203757,1775017892301,-292.439697,0.000337,7]
[419203758,1775017892312,-230.276744,0.000337,7]
[419203759,1775017892321,-1445.817218,0.000337,7]
[419203760,1775017892331,-741.356026,0.000337,7]
[419203761,1775017892340,-292.439697,0.000337,7]
[419203762,1775017892350,-381.584383,0.000337,7]
[419203763,1775017892359,-205.686774,0.000337,7]
[419203764,1775017892369,-230.276744,0.000337,7]
[419203765,1775017892379,-741.35603,0.000337,7]
[419203766,1775017892389,-1207.311356,0.000337,7]
[419203767,1775017892400,-292.439691,0.000337,7]
[419203768,1775017892409,-205.686774,0.000337,7]
[419203769,1775017892419,-230.276744,0.000337,7]
[419203770,1775017892428,-151.0,0.000337,7]
[419203771,1775017892437,-1207.311356,0.000337,7]
[419203772,1775017892446,-205.686774,0.000337,7]
[419203773,1775017892456,-302.638113,0.000337,7]
[419203774,1775017892465,-230.276741,0.000337,7]
[419203775,1775017892475,-1207.311356,0.000337,7]
[419203776,1775017892484,-603.555246,0.000337,7]
[419203777,1775017892493,-302.638113,0.000337,7]
[419203778,1775017892503,-603.555246,0.000337,7]
[419203779,1775017892513,-1207.311362,0.000337,7]
[419203780,1775017892523,-235.924091,0.000337,7]
[419203781,1775017892533,-302.638113,0.000337,7]
[419203782,1775017892543,-235.924091,0.000337,7]
[419203783,1775017892553,-302.638117,0.000337,7]
[419203784,1775017892563,-958.80957,0.000337,7]
[419203785,1775017892572,-235.924091,0.000337,7]
[419203786,1775017892582,-235.924082,0.000337,7]
[419203787,1775017892592,-958.80957,0.000337,7]
[419203788,1775017892602,-958.80957,0.000337,7]
[419203789,1775017892611,-205.686772,0.000337,7]
[419203790,1775017892621,-151.0,0.000337,7]
[419203791,1775017892631,-958.809564,0.000337,7]
[419203792,1775017892640,-176.009509,0.000337,7]
[419203793,1775017892650,-603.555246,0.000337,7]
[419203794,1775017892660,-603.555241,0.000337,7]
[419203795,1775017892670,-838.01367,0.000337,7]
[419203796,1775017892680,-838.01367,0.000337,7]
[419203797,1775017892690,-689.341716,0.000337,7]
[419203798,1775017892700,-1045.235566,0.000337,7]
[419203799,1775017892710,-838.01367,0.000337,7]
[419203800,1775017892720,-2566.271614,0.000337,7]
[419203801,1775017892730,-1287.189548,0.000337,7]
[419203802,1775017892740,-689.341716,0.000337,7]
[419203803,1775017892749,-1045.235566,0.000337,7]
[419203804,1775017892759,-838.013678,0.000337,7]
[419203805,1775017892769,-2566.271614,0.000337,7]
[419203806,1775017892779,-689.341716,0.000337,7]
[419203807,1775017892789,-1045.235566,0.000337,7]
[419203808,1775017892798,-1287.189548,0.000337,7]
[419203809,1775017892808,-315.586112,0.000337,7]
[419203810,1775017892817,-2566.271614,0.000337,7]
[419203811,1775017892827,-689.341718,0.000337,7]